fUSD/lending_fUSD_20240727
["ID","MTS","AMOUNT","RATE_DAILY","PERIOD"]
[333342477,1722063043187,-500.0,0.00010994,2]
[333342479,1722063043197,-500.0,0.00010994,2]
[333342481,1722063043207,-166.08881458,0.00010994,2]
[333342483,1722063043217,-1037.68,0.00010994,2]
[333342485,1722063043227,-500.0,0.00010994,2]
[333342487,1722063043237,-500.0,0.00010994,2]
[333342489,1722063043246,-500.0,0.00010994,2]
[333342491,1722063043256,-500.0,0.00010994,2]
[333342493,1722063043266,-1923.38,0.00010994,2]
[333342495,1722063043276,-500.0,0.00010994,2]
[333342497,1722063043286,-500.0,0.00010994,2]
[333342499,1722063043295,-500.0,0.00010994,2]
[333342502,1722063043308,-709.4,0.00010994,2]
[333342504,1722063043318,-500.0,0.00010994,2]
[333342506,1722063043328,-500.0,0.00010994,2]
[333342508,1722063043338,-500.0,0.00010994,2]
[333342509,1722063043348,-500.0,0.00010994,2]
[333342510,1722063043357,-7302.83,0.00010994,2]
[333342511,1722063043368,-500.0,0.00010994,2]
[333342512,1722063043378,-1559.86,0.00010994,2]
[333342513,1722063043388,-500.0,0.00010994,2]
[333342514,1722063043398,-500.0,0.00010994,2]
[333342515,1722063043408,-502.56865868,0.00010994,2]
[333342516,1722063043418,-670.81,0.00010994,2]
[333342517,1722063043427,-500.0,0.00010994,2]
[333342518,1722063043437,-323.26,0.00010994,2]
[333342519,1722063043447,-500.0,0.00010994,2]
[333342520,1722063043457,-500.0,0.00010994,2]
[333342521,1722063043467,-500.0,0.00010994,2]
[333342522,1722063043476,-1711.73,0.00010994,2]
[333342523,1722063043486,-552.02,0.00010994,2]
[333342524,1722063043496,-500.0,0.00010994,2]
[333342525,1722063043505,-500.0,0.00010994,2]
[333342526,1722063043515,-5954.04,0.00010994,2]
[333342527,1722063043526,-551.36,0.00010994,2]
[333342528,1722063043535,-500.0,0.00010994,2]
[333342529,1722063043545,-500.0,0.00010994,2]
[333342530,1722063043555,-500.0,0.00010994,2]
[333342531,1722063043565,-278.74,0.00010994,2]
[333342532,1722063043575,-179.86,0.00010994,2]
[333342533,1722063043584,-588.86,0.00010994,2]
[333342534,1722063043594,-500.0,0.00010994,2]
[333342535,1722063043604,-500.0,0.00010994,2]
[333342536,1722063043613,-500.0,0.00010994,2]
[333342537,1722063043623,-500.0,0.00010994,2]
[333342538,1722063043632,-781.8,0.00010994,2]
[333342539,1722063043642,-1631.18,0.00010994,2]
[333342540,1722063043651,-500.0,0.00010994,2]
[333342541,1722063043661,-500.0,0.00010994,2]
[333342542,1722063043671,-500.0,0.00010994,2]
[333342543,1722063043680,-583.78,0.00010994,2]
[333342544,1722063043690,-167.6,0.00010994,2]
[333342545,1722063043699,-500.0,0.00010994,2]
[333342546,1722063043709,-500.0,0.00010994,2]
[333342547,1722063043719,-500.0,0.00010994,2]
[333342548,1722063043728,-475.0,0.00010994,2]
[333342549,1722063043737,-500.0,0.00010994,2]
[333342550,1722063043747,-541.63,0.00010994,2]
[333342551,1722063043756,-500.0,0.00010994,2]
[333342552,1722063043766,-1747.11,0.00010994,2]
[333342553,1722063043777,-513.52,0.00010994,2]
[333342554,1722063043787,-500.0,0.00010994,2]
[333342555,1722063043796,-541.46,0.00010994,2]
[333342556,1722063043808,-500.0,0.00010994,2]
[333342557,1722063043818,-500.0,0.00010994,2]
[333342558,1722063043828,-573.94,0.00010994,2]
[333342559,1722063043837,-500.0,0.00010994,2]
[333342560,1722063043847,-500.0,0.00010994,2]
[333342561,1722063043856,-500.0,0.00010994,2]
[333342562,1722063043866,-297.31,0.00010994,2]
[333342563,1722063043875,-500.0,0.00010994,2]
[333342564,1722063043885,-620.64,0.00010994,2]
[333342565,1722063043894,-500.0,0.00010994,2]
[333342566,1722063043904,-500.0,0.00010994,2]
[333342567,1722063043913,-500.0,0.00010994,2]
[333342568,1722063043923,-500.0,0.00010994,2]
[333342569,1722063043933,-500.0,0.00010994,2]
[333342570,1722063043943,-496.04,0.00010994,2]
[333342571,1722063043952,-2105.67,0.00010994,2]
[333342572,1722063043961,-500.0,0.00010994,2]
[333342573,1722063043971,-500.0,0.00010994,2]
[333342574,1722063043980,-500.0,0.00010994,2]
[333342575,1722063043989,-432.24794237,0.00010994,2]
[333342576,1722063043999,-649.54,0.00010994,2]
[333342577,1722063044013,-621.26,0.00010994,2]
[333342578,1722063044023,-500.0,0.00010994,2]
[333342579,1722063044033,-500.0,0.00010994,2]
[333342580,1722063044043,-500.0,0.00010994,2]
[333342581,1722063044054,-500.0,0.00010994,2]
[333342582,1722063044064,-500.0,0.00010994,2]
[333342584,1722063044074,-500.0,0.00010994,2]
[333342585,1722063044084,-500.0,0.00010994,2]
[333342586,1722063044093,-500.0,0.00010994,2]
[333342587,1722063044103,-591.57,0.00010994,2]
[333342588,1722063044112,-500.0,0.00010994,2]
[333342589,1722063044122,-500.0,0.00010994,2]
[333342590,1722063044132,-500.0,0.00010994,2]
[333342591,1722063044142,-184.81,0.00010994,2]
[333342592,1722063044152,-500.0,0.00010994,2]
[333342593,1722063044161,-500.0,0.00010994,2]
[333342594,1722063044171,-248.23,0.00010994,2]
[333342595,1722063044181,-500.0,0.00010994,2]
[333342596,1722063044190,-500.0,0.00010994,2]
[333342597,1722063044200,-585.26,0.00010994,2]
[333342598,1722063044210,-590.27,0.00010994,2]
[333342599,1722063044219,-500.0,0.00010994,2]
[333342600,1722063044229,-500.0,0.00010994,2]
[333342601,1722063044239,-500.0,0.00010994,2]
[333342602,1722063044248,-500.0,0.00010994,2]
[333342603,1722063044258,-500.0,0.00010994,2]
[333342604,1722063044267,-500.0,0.00010994,2]
[333342605,1722063044277,-541.72071691,0.00010994,2]
[333342606,1722063044287,-500.0,0.00010994,2]
[333342607,1722063044297,-500.0,0.00010994,2]
[333342608,1722063044306,-500.0,0.00010994,2]
[333342609,1722063044316,-500.0,0.00010994,2]
[333342610,1722063044326,-716.39,0.00010994,2]
[333342611,1722063044336,-411.04,0.00010994,2]
[333342612,1722063044345,-500.0,0.00010994,2]
[333342613,1722063044355,-606.54662343,0.00010994,2]
[333342614,1722063044364,-500.0,0.00010994,2]
[333342615,1722063044374,-500.0,0.00010994,2]
[333342616,1722063044384,-618.10195257,0.00010994,2]
[333342617,1722063044394,-276.7,0.00010994,2]
[333342618,1722063044403,-508.14465527,0.00010994,2]
[333342619,1722063044413,-792.25,0.00010994,2]
[333342620,1722063044618,-500.0,0.00010994,2]
[333342621,1722063044629,-500.0,0.00010994,2]
[333342622,1722063044639,-521.19,0.00010994,2]
[333342623,1722063044651,-500.0,0.00010994,2]
[333342624,1722063044661,-507.00812185,0.00010994,2]
[333342625,1722063044670,-500.0,0.00010994,2]
[333342626,1722063044681,-500.0,0.00010994,2]
[333342627,1722063044691,-500.0,0.00010994,2]
[333342628,1722063044700,-500.0,0.00010994,2]
[333342629,1722063044709,-418.05,0.00010994,2]
[333342630,1722063044719,-558.6,0.00010994,2]
[333342631,1722063044729,-500.0,0.00010994,2]
[333342632,1722063044739,-500.0,0.00010994,2]
[333342633,1722063044751,-500.0,0.00010994,2]
[333342634,1722063044764,-500.0,0.00010994,2]
[333342635,1722063044777,-10560.21,0.00010994,2]
[333342636,1722063044786,-500.0,0.00010994,2]
[333342637,1722063044795,-500.0,0.00010994,2]
[333342638,1722063044805,-500.0,0.00010994,2]
[333342639,1722063044817,-500.0,0.00010994,2]
[333342640,1722063044828,-500.0,0.00010994,2]
[333342641,1722063044839,-3504.45,0.00010994,2]
[333342642,1722063044848,-540.53,0.00010994,2]
[333342643,1722063044859,-3738.99,0.00010994,2]
[333342644,1722063044869,-500.0,0.00010994,2]
[333342645,1722063044881,-500.0,0.00010994,2]
[333342646,1722063044890,-681.32,0.00010994,2]
[333342647,1722063044900,-477.45,0.00010994,2]
[333342648,1722063044909,-437.06,0.00010994,2]
[333342649,1722063044918,-965.09,0.00010994,2]
[333342650,1722063044928,-1178.4,0.00010994,2]
[333342651,1722063044938,-3500.4,0.00010994,2]
[333342652,1722063044949,-213.98,0.00010994,2]
[333342653,1722063044959,-500.0,0.00010994,2]
[333342654,1722063044968,-1883.79,0.00010994,2]
[333342655,1722063044977,-500.0,0.00010994,2]
[333342656,1722063044987,-500.0,0.00010994,2]
[333342657,1722063044996,-500.0,0.00010994,2]
[333342658,1722063045009,-500.0,0.00010994,2]
[333342659,1722063045018,-586.22,0.00010994,2]
[333342660,1722063045028,-500.0,0.00010994,2]
[333342661,1722063045037,-6222.97,0.00010994,2]
[333342662,1722063045046,-3414.68,0.00010994,2]
[333342663,1722063045056,-220.78,0.00010994,2]
[333342664,1722063045065,-500.0,0.00010994,2]
[333342665,1722063045074,-421.29,0.00010994,2]
[333342666,1722063045084,-292.94,0.00010994,2]
[333342667,1722063045094,-500.0,0.00010994,2]
[333342668,1722063045103,-500.0,0.00010994,2]
[333342669,1722063045112,-6382.9,0.00010994,2]
[333342670,1722063045123,-647.66,0.00010994,2]
[333342671,1722063045133,-3402.82,0.00010994,2]
[333342672,1722063045142,-500.0,0.00010994,2]
[333342673,1722063045152,-500.0,0.00010994,2]
[333342674,1722063045161,-264.16,0.00010994,2]
[333342675,1722063045171,-2057.73,0.00010994,2]
[333342676,1722063045180,-1798.79,0.00010994,2]
[333342677,1722063045190,-838.52,0.00010994,2]
[333342678,1722063045199,-500.0,0.00010994,2]
[333342679,1722063045210,-3242.33,0.00010994,2]
[333342680,1722063045219,-500.0,0.00010994,2]
[333342681,1722063045229,-500.0,0.00010994,2]
[333342682,1722063045238,-500.0,0.00010994,2]
[333342683,1722063045248,-500.0,0.00010994,2]
[333342684,1722063045258,-254.08,0.00010994,2]
[333342685,1722063045267,-1380.84,0.00010994,2]
[333342686,1722063045277,-619.11,0.00010994,2]
[333342687,1722063045288,-507.4,0.00010994,2]
[333342688,1722063045298,-586.87,0.00010994,2]
[333342689,1722063045308,-2500.4,0.00010994,2]
[333342690,1722063045317,-500.0,0.00010994,2]
[333342691,1722063045327,-500.0,0.00010994,2]
[333342692,1722063045337,-500.0,0.00010994,2]
[333342693,1722063045346,-960.76,0.00010994,2]
[333342694,1722063045356,-1834.68,0.00010994,2]
[333342695,1722063045366,-500.0,0.00010994,2]
[333342696,1722063045375,-500.0,0.00010994,2]
[333342697,1722063045385,-1220.26,0.00010994,2]
[333342698,1722063045395,-500.0,0.00010994,2]
[333342699,1722063045404,-500.0,0.00010994,2]
[333342700,1722063045415,-588.65,0.00010994,2]
[333342701,1722063045426,-500.0,0.00010994,2]
[333342702,1722063045436,-630.69,0.00010994,2]
[333342703,1722063045446,-500.0,0.00010994,2]
[333342704,1722063045456,-500.0,0.00010994,2]
[333342705,1722063045467,-500.0,0.00010994,2]
[333342706,1722063045476,-500.0,0.00010994,2]
[333342707,1722063045487,-500.0,0.00010994,2]
[333342709,1722063045497,-1599.97,0.00010994,2]
[333342711,1722063045507,-500.0,0.00010994,2]
[333342712,1722063045516,-500.0,0.00010994,2]
[333342713,1722063045526,-500.0,0.00010994,2]
[333342714,1722063045536,-607.57,0.00010994,2]
[333342715,1722063045546,-692.26,0.00010994,2]
[333342716,1722063045555,-500.0,0.00010994,2]
[333342717,1722063045565,-500.0,0.00010994,2]
[333342718,1722063045575,-500.0,0.00010994,2]
[333342719,1722063045584,-500.0,0.00010994,2]
[333342720,1722063045594,-861.54,0.00010994,2]
[333342721,1722063045603,-500.0,0.00010994,2]
[333342722,1722063045613,-500.0,0.00010994,2]
[333342723,1722063045622,-256.25,0.00010994,2]
[333342724,1722063045632,-546.29,0.00010994,2]
[333342725,1722063045641,-500.0,0.00010994,2]
[333342726,1722063045650,-500.0,0.00010994,2]
[333342727,1722063045660,-500.0,0.00010994,2]
[333342728,1722063045669,-593.12,0.00010994,2]
[333342729,1722063045679,-475.57592174,0.00010994,2]
[333342730,1722063045689,-500.0,0.00010994,2]
[333342732,1722063045698,-429.51,0.00010994,2]
[333342734,1722063045708,-500.0,0.00010994,2]
[333342736,1722063045718,-1198.57,0.00010994,2]
[333342738,1722063045727,-500.0,0.00010994,2]
[333342740,1722063045737,-500.0,0.00010994,2]
[333342742,1722063045746,-500.0,0.00010994,2]
[333342744,1722063045756,-500.0,0.00010994,2]
[333342746,1722063045766,-555.88,0.00010994,2]
[333342748,1722063045775,-500.0,0.00010994,2]
[333342750,1722063045785,-500.0,0.00010994,2]
[333342752,1722063045795,-500.0,0.00010994,2]
[333342754,1722063045804,-500.0,0.00010994,2]
[333342756,1722063045814,-500.0,0.00010994,2]
[333342758,1722063045823,-837.0,0.00010994,2]
[333342760,1722063045833,-500.0,0.00010994,2]
[333342762,1722063045842,-500.0,0.00010994,2]
[333342764,1722063045851,-500.0,0.00010994,2]
[333342765,1722063045861,-500.0,0.00010994,2]
[333342766,1722063045870,-500.0,0.00010994,2]
[333342767,1722063045880,-500.0,0.00010994,2]
[333342769,1722063045890,-2046.1,0.00010994,2]
[333342771,1722063045899,-500.0,0.00010994,2]
[333342773,1722063045909,-500.0,0.00010994,2]
[333342775,1722063045919,-500.0,0.00010994,2]
[333342777,1722063045928,-500.0,0.00010994,2]
[333342779,1722063045937,-500.0,0.00010994,2]
[333342781,1722063045947,-500.0,0.00010994,2]
[333342783,1722063045957,-500.0,0.00010994,2]
[333342785,1722063045966,-500.0,0.00010994,2]
[333342787,1722063045976,-500.0,0.00010994,2]
[333342789,1722063045986,-2671.43,0.00010994,2]
[333342791,1722063045995,-503.38022581,0.00010994,2]
[333342793,1722063046008,-1063.85,0.00010994,2]
[333342795,1722063046018,-575.36,0.00010994,2]
[333342797,1722063046027,-500.0,0.00010994,2]
[333342799,1722063046036,-500.0,0.00010994,2]
[333342801,1722063046047,-500.0,0.00010994,2]
[333342803,1722063046056,-2339.79,0.00010994,2]
[333342805,1722063046066,-365.64,0.00010994,2]
[333342807,1722063046075,-500.0,0.00010994,2]
[333342809,1722063046087,-500.0,0.00010994,2]
[333342811,1722063046097,-500.0,0.00010994,2]
[333342813,1722063046107,-2943.1,0.00010994,2]
[333342815,1722063046116,-500.0,0.00010994,2]
[333342817,1722063046126,-500.0,0.00010994,2]
[333342819,1722063046136,-2091.19,0.00010994,2]
[333342821,1722063046146,-500.0,0.00010994,2]
[333342823,1722063046155,-500.0,0.00010994,2]
[333342825,1722063046165,-500.0,0.00010994,2]
[333342827,1722063046175,-500.0,0.00010994,2]
[333342829,1722063046184,-500.0,0.00010994,2]
[333342831,1722063046194,-2840.32,0.00010994,2]
[333342833,1722063046203,-500.0,0.00010994,2]
[333342835,1722063046212,-624.46,0.00010994,2]
[333342837,1722063046222,-500.0,0.00010994,2]
[333342839,1722063046231,-644.42,0.00010994,2]
[333342841,1722063046241,-500.0,0.00010994,2]
[333342843,1722063046250,-896.17,0.00010994,2]
[333342845,1722063046260,-500.0,0.00010994,2]
[333342847,1722063046270,-599.48,0.00010994,2]
[333342849,1722063046280,-506.6284412,0.00010994,2]
[333342851,1722063046290,-3368.45,0.00010994,2]
[333342853,1722063046299,-500.0,0.00010994,2]
[333342855,1722063046309,-500.0,0.00010994,2]
[333342857,1722063046318,-799.26,0.00010994,2]
[333342859,1722063046327,-1638.46,0.00010994,2]
[333342861,1722063046335,-504.15,0.00010994,2]
[333342863,1722063046344,-500.0,0.00010994,2]
[333342865,1722063046353,-298.81,0.00010994,2]
[333342867,1722063046362,-500.0,0.00010994,2]
[333342869,1722063046371,-500.0,0.00010994,2]
[333342871,1722063046380,-500.0,0.00010994,2]
[333342873,1722063046388,-500.0,0.00010994,2]
[333342875,1722063046397,-500.0,0.00010994,2]
[333342876,1722063046405,-500.0,0.00010994,2]
[333342878,1722063046414,-1116.29,0.00010994,2]
[333342880,1722063046422,-500.0,0.00010994,2]
[333342882,1722063046432,-500.0,0.00010994,2]
[333342884,1722063046441,-927.15,0.00010994,2]
[333342885,1722063046449,-500.0,0.00010994,2]
[333342886,1722063046457,-418.22507913,0.00010994,2]
[333342887,1722063046466,-500.0,0.00010994,2]
[333342888,1722063046474,-500.0,0.00010994,2]
[333342889,1722063046482,-500.0,0.00010994,2]
[333342890,1722063046491,-969.98,0.00010994,2]
[333342891,1722063046500,-260.92,0.00010994,2]
[333342892,1722063046508,-501.12,0.00010994,2]
[333342893,1722063046516,-500.0,0.00010994,2]
[333342894,1722063046525,-500.0,0.00010994,2]
[333342895,1722063046534,-500.0,0.00010994,2]
[333342896,1722063046542,-500.0,0.00010994,2]
[333342897,1722063046551,-1717.26,0.00010994,2]
[333342898,1722063046559,-500.0,0.00010994,2]
[333342899,1722063046568,-500.0,0.00010994,2]
[333342900,1722063046577,-413.26,0.00010994,2]
[333342901,1722063046585,-500.0,0.00010994,2]
[333342902,1722063046593,-150.0,0.00010994,2]
[333342903,1722063046602,-1751.85,0.00010994,2]
[333342904,1722063046610,-518.99,0.00010994,2]
[333342905,1722063046619,-251.19653248,0.00010994,2]
[333342906,1722063046627,-640.01,0.00010994,2]
[333342907,1722063046635,-500.0,0.00010994,2]
[333342908,1722063046644,-500.0,0.00010994,2]
[333342909,1722063046652,-616.54260745,0.00010994,2]
[333342910,1722063046660,-500.0,0.00010994,2]
[333342911,1722063046668,-898.96,0.00010994,2]
[333342912,1722063046677,-303.10122158,0.00010994,2]
[333342913,1722063046684,-500.0,0.00010994,2]
[333342914,1722063046691,-500.0,0.00010994,2]
[333342915,1722063046697,-500.0,0.00010994,2]
[333342916,1722063046704,-500.0,0.00010994,2]
[333342917,1722063046710,-500.0,0.00010994,2]
[333342918,1722063046717,-609.14,0.00010994,2]
[333342919,1722063046723,-500.0,0.00010994,2]
[333342920,1722063046730,-500.0,0.00010994,2]
[333342921,1722063046737,-500.0,0.00010994,2]
[333342922,1722063046743,-414.08492747,0.00010994,2]
[333342923,1722063046750,-579.72,0.00010994,2]
[333342924,1722063046757,-343.15,0.00010994,2]
[333342925,1722063046763,-524.62469659,0.00010994,2]
[333342926,1722063046770,-597.01,0.00010994,2]
[333342927,1722063046777,-334.14,0.00010994,2]
[333342928,1722063046785,-500.0,0.00010994,2]
[333342929,1722063046791,-500.0,0.00010994,2]
[333342930,1722063046799,-500.0,0.00010994,2]
[333342931,1722063046806,-500.0,0.00010994,2]
[333342932,1722063046813,-500.0,0.00010994,2]
[333342933,1722063046820,-500.0,0.00010994,2]
[333342934,1722063046827,-522.79,0.00010994,2]
[333342936,1722063046836,-500.0,0.00010994,2]
[333342937,1722063046846,-500.0,0.00010994,2]
[333342938,1722063046855,-500.0,0.00010994,2]
[333342946,1722063046925,-500.0,0.00010994,2]
[333342948,1722063046934,-500.0,0.00010994,2]
[333342950,1722063046943,-500.0,0.00010994,2]
[333342951,1722063046952,-500.0,0.00010994,2]
[333342953,1722063046961,-500.0,0.00010994,2]
[333342955,1722063046970,-500.0,0.00010994,2]
[333342957,1722063046979,-500.0,0.00010994,2]
[333342959,1722063046989,-219.18,0.00010994,2]
[333342961,1722063046998,-500.0,0.00010994,2]
[333342963,1722063047012,-500.0,0.00010994,2]
[333342965,1722063047022,-500.0,0.00010994,2]
[333342967,1722063047033,-500.0,0.00010994,2]
[333342968,1722063047042,-500.0,0.00010994,2]
[333342970,1722063047053,-500.0,0.00010994,2]
[333342973,1722063047062,-500.0,0.00010994,2]
[333342975,1722063047072,-500.0,0.00010994,2]
[333342977,1722063047081,-500.0,0.00010994,2]
[333342979,1722063047090,-500.0,0.00010994,2]
[333342981,1722063047100,-500.0,0.00010994,2]
[333342982,1722063047109,-354.9,0.00010994,2]
[333342984,1722063047118,-500.0,0.00010994,2]
[333342986,1722063047127,-500.0,0.00010994,2]
[333342988,1722063047136,-500.0,0.00010994,2]
[333342990,1722063047145,-500.0,0.00010994,2]
[333342992,1722063047155,-500.0,0.00010994,2]
[333342994,1722063047164,-500.0,0.00010994,2]
[333342996,1722063047173,-500.0,0.00010994,2]
[333342998,1722063047182,-500.0,0.00010995,2]
[333343000,1722063047192,-386.94,0.00010995,2]
[333343002,1722063047201,-500.0,0.00010995,2]
[333343004,1722063047210,-500.0,0.00010995,2]
[333343005,1722063047219,-500.0,0.00010995,2]
[333343007,1722063047228,-500.0,0.00010995,2]
[333343009,1722063047238,-563.5,0.00010995,2]
[333343011,1722063047248,-500.0,0.00010995,2]
[333343013,1722063047258,-500.0,0.00010995,2]
[333343014,1722063047268,-500.0,0.00010995,2]
[333343015,1722063047277,-500.0,0.00010995,2]
[333343016,1722063047289,-500.0,0.00010995,2]
[333343017,1722063047298,-500.0,0.00010995,2]
[333343018,1722063047307,-500.0,0.00010995,2]
[333343019,1722063047317,-500.0,0.00010995,2]
[333343020,1722063047326,-500.0,0.00010995,2]
[333343021,1722063047335,-299.48,0.00010995,2]
[333343022,1722063047344,-565.22,0.00010995,2]
[333343023,1722063047353,-500.0,0.00010995,2]
[333343024,1722063047362,-500.0,0.00010995,2]
[333343025,1722063047372,-500.0,0.00010995,2]
[333343026,1722063047381,-281.23,0.00010995,2]
[333343027,1722063047391,-500.0,0.00010995,2]
[333343028,1722063047400,-500.0,0.00010995,2]
[333343029,1722063047409,-500.0,0.00010995,2]
[333343030,1722063047418,-500.0,0.00010995,2]
[333343031,1722063047428,-500.0,0.00010995,2]
[333343032,1722063047437,-500.0,0.00010995,2]
[333343033,1722063047446,-532.29,0.00010995,2]
[333343034,1722063047456,-500.0,0.00010995,2]
[333343035,1722063047465,-248.36,0.00010995,2]
[333343036,1722063047474,-500.0,0.00010995,2]
[333343037,1722063047483,-500.0,0.00010995,2]
[333343038,1722063047493,-500.0,0.00010995,2]
[333343039,1722063047503,-500.0,0.00010995,2]
[333343040,1722063047512,-517.03,0.00010995,2]
[333343041,1722063047522,-602.24,0.00010995,2]
[333343042,1722063047531,-500.0,0.00010995,2]
[333343043,1722063047540,-268.7113578,0.00010995,2]
[333343044,1722063047549,-500.0,0.00010995,2]
[333343045,1722063047558,-500.0,0.00010995,2]
[333343046,1722063047567,-500.0,0.00010995,2]
[333343047,1722063047576,-500.0,0.00010995,2]
[333343048,1722063047585,-500.0,0.00010995,2]
[333343049,1722063047594,-217.63,0.00010995,2]
[333343050,1722063047603,-500.0,0.00010995,2]
[333343051,1722063047612,-540.64,0.00010995,2]
[333343052,1722063047621,-500.0,0.00010995,2]
[333343053,1722063047630,-468.02,0.00010995,2]
[333343054,1722063047639,-500.0,0.00010995,2]
[333343055,1722063047648,-500.0,0.00010995,2]
[333343056,1722063047657,-173.49,0.00010995,2]
[333343057,1722063047666,-500.0,0.00010995,2]
[333343058,1722063047675,-500.0,0.00010995,2]
[333343059,1722063047684,-500.0,0.00010995,2]
[333343060,1722063047693,-500.0,0.00010995,2]
[333343061,1722063047703,-500.0,0.00010995,2]
[333343062,1722063047712,-500.0,0.00010995,2]
[333343063,1722063047721,-500.0,0.00010995,2]
[333343064,1722063047730,-500.0,0.00010995,2]
[333343065,1722063047740,-500.0,0.00010995,2]
[333343066,1722063047749,-500.0,0.00010995,2]
[333343067,1722063047758,-500.0,0.00010995,2]
[333343068,1722063047767,-425.08,0.00010995,2]
[333343069,1722063047776,-500.0,0.00010995,2]
[333343070,1722063047786,-500.0,0.00010995,2]
[333343071,1722063047795,-377.56,0.00010995,2]
[333343072,1722063047804,-500.0,0.00010995,2]
[333343073,1722063047814,-500.0,0.00010995,2]
[333343074,1722063047823,-500.0,0.00010995,2]
[333343075,1722063047833,-502.9870837,0.00010995,2]
[333343076,1722063047842,-500.0,0.00010995,2]
[333343077,1722063047851,-500.0,0.00010995,2]
[333343078,1722063047860,-500.0,0.00010995,2]
[333343079,1722063047869,-500.0,0.00010995,2]
[333343080,1722063047879,-500.0,0.00010995,2]
[333343081,1722063047889,-500.0,0.00010995,2]
[333343082,1722063047898,-435.59887287,0.00010995,2]
[333343083,1722063047907,-153.89,0.00010995,2]
[333343084,1722063047917,-271.60354152,0.00010995,2]
[333343085,1722063047926,-500.0,0.00010995,2]
[333343086,1722063047935,-500.0,0.00010995,2]
[333343087,1722063047944,-500.0,0.00010995,2]
[333343088,1722063047954,-500.0,0.00010995,2]
[333343089,1722063047963,-716.39,0.00010995,2]
[333343090,1722063047972,-546.23,0.00010995,2]
[333343091,1722063047982,-500.0,0.00010995,2]
[333343092,1722063047991,-597.23,0.00010995,2]
[333343093,1722063048002,-527.88,0.00010995,2]
[333343094,1722063048014,-500.0,0.00010995,2]
[333343095,1722063048023,-189.3,0.00010995,2]
[333343096,1722063048033,-583.38,0.00010995,2]
[333343097,1722063048042,-500.0,0.00010995,2]
[333343098,1722063048051,-500.0,0.00010995,2]
[333343099,1722063048061,-500.0,0.00010995,2]
[333343100,1722063048071,-792.25,0.00010995,2]
[333343101,1722063048080,-500.0,0.00010995,2]
[333343102,1722063048089,-500.0,0.00010995,2]
[333343103,1722063048099,-500.0,0.00010995,2]
[333343104,1722063048109,-500.0,0.00010995,2]
[333343105,1722063048119,-606.46,0.00010995,2]
[333343106,1722063048128,-500.0,0.00010995,2]
[333343107,1722063048138,-513.93,0.00010995,2]
[333343108,1722063048147,-500.0,0.00010995,2]
[333343109,1722063048156,-500.0,0.00010995,2]
[333343110,1722063048165,-500.0,0.00010995,2]